[Event "Early-Titled-Tuesday-Blitz-October-24-2023"]
[Site "Chess.com"]
[Date "2023.10.24"]
[Round "1"]
[White "Meri-Arabidze"]
[Black "Verony64"]
[Result "1-0"]
[WhiteElo "2561"]
[BlackElo "2188"]
[TimeControl "180+1"]
[EndTime "8:02:36 PDT"]
[Termination "Meri-Arabidze won by checkmate"]

1. Nf3 {[%clk 0:03:00.9]} 1... d6 {[%clk 0:02:59.7]} 2. c4 {[%clk 0:03:01.2]}
2... e5 {[%clk 0:02:59.6]} 3. g3 {[%clk 0:03:01.7]} 3... f5 {[%clk 0:03:00.1]}
4. Bg2 {[%clk 0:03:01.9]} 4... Nf6 {[%clk 0:03:00.8]} 5. d3 {[%clk 0:03:01.3]}
5... Be7 {[%clk 0:03:01.3]} 6. O-O {[%clk 0:03:01.8]} 6... O-O {[%clk
0:03:01.6]} 7. b4 {[%clk 0:03:02.1]} 7... c6 {[%clk 0:03:02]} 8. Bb2 {[%clk
0:03:01.5]} 8... Nbd7 {[%clk 0:03:00.9]} 9. Nc3 {[%clk 0:03:01.5]} 9... Qc7
{[%clk 0:03:00.4]} 10. a4 {[%clk 0:03:01.5]} 10... Ng4 {[%clk 0:02:47.6]} 11.
Qb3 {[%clk 0:02:59]} 11... Kh8 {[%clk 0:02:46.2]} 12. Rac1 {[%clk 0:02:55.2]}
12... Ndf6 {[%clk 0:02:46]} 13. e3 {[%clk 0:02:44.2]} 13... Be6 {[%clk
0:02:44.7]} 14. d4 {[%clk 0:02:38.5]} 14... e4 {[%clk 0:02:36.5]} 15. Ng5 {[%clk
0:02:38.5]} 15... Bg8 {[%clk 0:02:36.6]} 16. h3 {[%clk 0:02:36.5]} 16... Nh6
{[%clk 0:02:31]} 17. d5 {[%clk 0:02:36.8]} 17... Nxd5 {[%clk 0:01:59.1]} 18.
Nxd5 {[%clk 0:02:30.6]} 18... cxd5 {[%clk 0:01:58.2]} 19. cxd5 {[%clk
0:02:27.4]} 19... Qd7 {[%clk 0:01:56.8]} 20. Ne6 {[%clk 0:02:26.9]} 20... Rfc8
{[%clk 0:01:54.7]} 21. Bxg7# {[%clk 0:02:25.3]} 1-0

[Event "Early-Titled-Tuesday-Blitz-October-24-2023"]
[Site "Chess.com"]
[Date "2023.10.24"]
[Round "1"]
[White "schack_vit"]
[Black "BardArtem"]
[Result "0-1"]
[WhiteElo "2382"]
[BlackElo "2700"]
[TimeControl "180+1"]
[EndTime "8:02:47 PDT"]
[Termination "BardArtem won by resignation"]

1. c4 {[%clk 0:02:50.5]} 1... e6 {[%clk 0:02:57.6]} 2. g3 {[%clk 0:02:50.5]}
2... d5 {[%clk 0:02:57.5]} 3. Bg2 {[%clk 0:02:51.1]} 3... Nf6 {[%clk 0:02:57.5]}
4. Nf3 {[%clk 0:02:51.6]} 4... Nbd7 {[%clk 0:02:53.8]} 5. O-O {[%clk 0:02:51.9]}
5... c6 {[%clk 0:02:54]} 6. b3 {[%clk 0:02:51]} 6... Bd6 {[%clk 0:02:53.6]} 7.
d4 {[%clk 0:02:50.1]} 7... O-O {[%clk 0:02:52.7]} 8. Nc3 {[%clk 0:02:50]} 8...
b6 {[%clk 0:02:52.8]} 9. Qc2 {[%clk 0:02:47.8]} 9... Bb7 {[%clk 0:02:49.7]} 10.
Rd1 {[%clk 0:02:40.9]} 10... Rc8 {[%clk 0:02:46.3]} 11. e4 {[%clk 0:02:38]}
11... Nxe4 {[%clk 0:02:45.8]} 12. Nxe4 {[%clk 0:02:38.1]} 12... dxe4 {[%clk
0:02:46.7]} 13. Qxe4 {[%clk 0:02:37.9]} 13... Nf6 {[%clk 0:02:46.9]} 14. Qh4
{[%clk 0:02:37.5]} 14... h6 {[%clk 0:02:26.4]} 15. Ne5 {[%clk 0:02:17.4]} 15...
Bxe5 {[%clk 0:02:24]} 16. Bxh6 {[%clk 0:02:10.5]} 16... Bd6 {[%clk 0:02:16]} 17.
Bg5 {[%clk 0:02:02.3]} 17... Be7 {[%clk 0:02:15.5]} 18. d5 {[%clk 0:01:56.4]}
18... cxd5 {[%clk 0:02:11.8]} 0-1

[Event "Early-Titled-Tuesday-Blitz-October-24-2023"]
[Site "Chess.com"]
[Date "2023.10.24"]
[Round "1"]
[White "dianamirza"]
[Black "N18player"]
[Result "1-0"]
[WhiteElo "2026"]
[BlackElo "2505"]
[TimeControl "180+1"]
[EndTime "8:03:07 PDT"]
[Termination "dianamirza won by resignation"]

1. d4 {[%clk 0:03:00.1]} 1... e6 {[%clk 0:03:00.9]} 2. Nf3 {[%clk 0:02:59.5]}
2... d5 {[%clk 0:03:01.8]} 3. e3 {[%clk 0:03:00.1]} 3... c5 {[%clk 0:03:02.5]}
4. b3 {[%clk 0:03:00.1]} 4... Nc6 {[%clk 0:03:03.4]} 5. Bb2 {[%clk 0:02:59.5]}
5... cxd4 {[%clk 0:03:04.3]} 6. exd4 {[%clk 0:02:59.6]} 6... Nf6 {[%clk
0:03:05.2]} 7. Bd3 {[%clk 0:02:58.2]} 7... Bd6 {[%clk 0:03:06.1]} 8. a3 {[%clk
0:02:57.6]} 8... O-O {[%clk 0:03:07]} 9. O-O {[%clk 0:02:57.7]} 9... a6 {[%clk
0:03:07.5]} 10. Ne5 {[%clk 0:02:57.6]} 10... Qc7 {[%clk 0:03:05.8]} 11. f4
{[%clk 0:02:57.5]} 11... Ne4 {[%clk 0:03:05.9]} 12. Nd2 {[%clk 0:02:53.7]} 12...
f6 {[%clk 0:03:05.3]} 13. Bxe4 {[%clk 0:02:28.1]} 13... dxe4 {[%clk 0:02:57.5]}
14. Nxc6 {[%clk 0:02:27.7]} 14... Qxc6 {[%clk 0:02:49.1]} 15. c4 {[%clk
0:02:21.4]} 15... b5 {[%clk 0:02:46.1]} 16. Qe2 {[%clk 0:02:12.3]} 16... Bb7
{[%clk 0:02:45]} 17. Rae1 {[%clk 0:02:07.6]} 17... f5 {[%clk 0:02:42.3]} 18. Qf2
{[%clk 0:01:59.5]} 18... Rad8 {[%clk 0:02:38.8]} 19. Qg3 {[%clk 0:01:58.1]}
19... Rf7 {[%clk 0:02:38]} 20. a4 {[%clk 0:01:52]} 20... Bb4 {[%clk 0:02:33.4]}
21. Re2 {[%clk 0:01:49.8]} 21... bxa4 {[%clk 0:02:27.4]} 22. bxa4 {[%clk
0:01:48.6]} 22... Bxd2 {[%clk 0:02:27.3]} 23. Rxd2 {[%clk 0:01:46.8]} 23... Qxc4
{[%clk 0:02:27.2]} 24. Rc1 {[%clk 0:01:33.7]} 24... Qc5 {[%clk 0:02:26.8]} 25.
Rxc5 {[%clk 0:01:31.4]} 1-0

[Event "Early-Titled-Tuesday-Blitz-October-24-2023"]
[Site "Chess.com"]
[Date "2023.10.24"]
[Round "1"]
[White "marcodobrikov"]
[Black "UK_23"]
[Result "0-1"]
[WhiteElo "2691"]
[BlackElo "2403"]
[TimeControl "180+1"]
[EndTime "8:03:23 PDT"]
[Termination "UK_23 won by resignation"]

1. Nc3 {[%clk 0:02:54.6]} 1... e5 {[%clk 0:02:59.2]} 2. e4 {[%clk 0:02:53]} 2...
Nf6 {[%clk 0:02:59.1]} 3. Nf3 {[%clk 0:02:49.3]} 3... Nc6 {[%clk 0:02:59.4]} 4.
Bb5 {[%clk 0:02:46.5]} 4... Bd6 {[%clk 0:02:59.5]} 5. O-O {[%clk 0:02:44.3]}
5... h6 {[%clk 0:02:59.3]} 6. d3 {[%clk 0:02:43.9]} 6... O-O {[%clk 0:02:59.3]}
7. h3 {[%clk 0:02:42.7]} 7... Re8 {[%clk 0:02:59.7]} 8. Be3 {[%clk 0:02:41.3]}
8... Bf8 {[%clk 0:02:58.4]} 9. Qd2 {[%clk 0:02:41.5]} 9... d5 {[%clk 0:02:54.3]}
10. exd5 {[%clk 0:02:40.5]} 10... Nxd5 {[%clk 0:02:55.2]} 11. Bxc6 {[%clk
0:02:40.2]} 11... bxc6 {[%clk 0:02:53.2]} 12. Rfe1 {[%clk 0:02:35.5]} 12... Rb8
{[%clk 0:02:37.5]} 13. Rab1 {[%clk 0:02:31.6]} 13... Nxe3 {[%clk 0:02:32.4]} 14.
Rxe3 {[%clk 0:02:29.2]} 14... Bd6 {[%clk 0:02:27.4]} 15. d4 {[%clk 0:02:22.6]}
15... exd4 {[%clk 0:02:24.8]} 16. Nxd4 {[%clk 0:02:21.4]} 16... Bd7 {[%clk
0:02:20]} 17. Ne4 {[%clk 0:02:18.7]} 17... Bf4 {[%clk 0:02:14.2]} 18. Qd3 {[%clk
0:02:13.1]} 18... Bxe3 {[%clk 0:02:13.3]} 19. Qxe3 {[%clk 0:02:13.4]} 19... f5
{[%clk 0:02:08.5]} 20. f3 {[%clk 0:02:11.1]} 20... fxe4 {[%clk 0:02:08.6]} 21.
fxe4 {[%clk 0:02:10.4]} 21... Qg5 {[%clk 0:02:08.4]} 22. Qd3 {[%clk 0:02:06.7]}
22... Rbd8 {[%clk 0:02:08.3]} 23. Nf3 {[%clk 0:02:04.2]} 23... Qc5+ {[%clk
0:02:07]} 24. Kh1 {[%clk 0:02:03.4]} 24... Bxh3 {[%clk 0:02:05.3]} 25. Qb3+
{[%clk 0:02:03.1]} 25... Be6 {[%clk 0:02:05.9]} 26. Qa4 {[%clk 0:01:59]} 26...
Bg4 {[%clk 0:01:58.1]} 0-1

[Event "Early-Titled-Tuesday-Blitz-October-24-2023"]
[Site "Chess.com"]
[Date "2023.10.24"]
[Round "1"]
[White "Nitzan_Steinberg"]
[Black "CarlosjPineror"]
[Result "1-0"]
[WhiteElo "2874"]
[BlackElo "2477"]
[TimeControl "180+1"]
[EndTime "8:03:44 PDT"]
[Termination "Nitzan_Steinberg won by resignation"]

1. Nf3 {[%clk 0:03:00.9]} 1... c5 {[%clk 0:02:58.8]} 2. e4 {[%clk 0:03:00.9]}
2... Nf6 {[%clk 0:02:59.7]} 3. e5 {[%clk 0:03:00.8]} 3... Nd5 {[%clk 0:03:00.2]}
4. Nc3 {[%clk 0:03:01.5]} 4... Nxc3 {[%clk 0:02:50.6]} 5. dxc3 {[%clk
0:03:01.5]} 5... d5 {[%clk 0:02:51]} 6. exd6 {[%clk 0:02:52]} 6... Qxd6 {[%clk
0:02:50.4]} 7. Qxd6 {[%clk 0:02:50]} 7... exd6 {[%clk 0:02:51.3]} 8. Bf4 {[%clk
0:02:49.9]} 8... Be6 {[%clk 0:02:47.4]} 9. O-O-O {[%clk 0:02:49.7]} 9... d5
{[%clk 0:02:46.8]} 10. Bb5+ {[%clk 0:02:32.3]} 10... Nc6 {[%clk 0:02:46.2]} 11.
Ne5 {[%clk 0:02:32]} 11... Rc8 {[%clk 0:02:44.5]} 12. Nxc6 {[%clk 0:02:29.2]}
12... bxc6 {[%clk 0:02:44.4]} 13. Ba6 {[%clk 0:02:30]} 13... Rd8 {[%clk
0:02:37.4]} 14. Rhe1 {[%clk 0:02:29.7]} 14... Bd6 {[%clk 0:02:36.4]} 15. Bxd6
{[%clk 0:02:15.5]} 15... Rxd6 {[%clk 0:02:37.3]} 16. f4 {[%clk 0:02:14.7]} 16...
Kd8 {[%clk 0:02:31.9]} 17. Be2 {[%clk 0:02:13.1]} 17... h5 {[%clk 0:02:26.8]}
18. h3 {[%clk 0:02:05.4]} 18... h4 {[%clk 0:02:25.3]} 19. Bf3 {[%clk 0:02:05.3]}
19... Bf5 {[%clk 0:02:19.1]} 20. Re5 {[%clk 0:02:03]} 20... g6 {[%clk
0:02:18.1]} 21. c4 {[%clk 0:01:59.8]} 21... f6 {[%clk 0:02:15]} 22. Re3 {[%clk
0:02:00]} 22... d4 {[%clk 0:02:14.8]} 23. Ra3 {[%clk 0:02:00.7]} 23... Rh7
{[%clk 0:02:12.6]} 24. Ra5 {[%clk 0:02:00.9]} 24... Rhd7 {[%clk 0:01:55.9]} 25.
Rxc5 {[%clk 0:02:00.5]} 25... Kc7 {[%clk 0:01:40.6]} 26. b4 {[%clk 0:02:00.3]}
26... Kb6 {[%clk 0:01:33.6]} 27. Rxf5 {[%clk 0:02:00.2]} 1-0

[Event "Early-Titled-Tuesday-Blitz-October-24-2023"]
[Site "Chess.com"]
[Date "2023.10.24"]
[Round "1"]
[White "Iball95"]
[Black "brunomorado"]
[Result "1-0"]
[WhiteElo "2823"]
[BlackElo "2455"]
[TimeControl "180+1"]
[EndTime "8:04:05 PDT"]
[Termination "Iball95 won by resignation"]

1. e4 {[%clk 0:02:59.1]} 1... c5 {[%clk 0:02:59.9]} 2. Nf3 {[%clk 0:02:59.3]}
2... Nc6 {[%clk 0:03:00.4]} 3. Nc3 {[%clk 0:02:59.9]} 3... d6 {[%clk 0:03:00.4]}
4. Bb5 {[%clk 0:02:59.4]} 4... Bd7 {[%clk 0:03:00.5]} 5. Bxc6 {[%clk 0:02:59.4]}
5... Bxc6 {[%clk 0:03:01.4]} 6. d4 {[%clk 0:03:00]} 6... cxd4 {[%clk 0:03:00.1]}
7. Qxd4 {[%clk 0:03:00.9]} 7... Nf6 {[%clk 0:02:59]} 8. Bg5 {[%clk 0:03:01.2]}
8... e5 {[%clk 0:02:57.8]} 9. Qd3 {[%clk 0:03:01.1]} 9... Be7 {[%clk 0:02:57.6]}
10. O-O-O {[%clk 0:03:01.3]} 10... Rc8 {[%clk 0:02:52]} 11. Bxf6 {[%clk
0:02:58]} 11... Bxf6 {[%clk 0:02:47.6]} 12. Qxd6 {[%clk 0:02:57.9]} 12... Qxd6
{[%clk 0:02:48.5]} 13. Rxd6 {[%clk 0:02:57.9]} 13... Be7 {[%clk 0:02:41.8]} 14.
Rd3 {[%clk 0:02:55.7]} 14... f6 {[%clk 0:02:39]} 15. Rhd1 {[%clk 0:02:48.7]}
15... Kf7 {[%clk 0:02:33.7]} 16. Nd5 {[%clk 0:02:48.7]} 16... Bc5 {[%clk
0:02:33.7]} 17. R1d2 {[%clk 0:02:48.1]} 17... a5 {[%clk 0:02:27.2]} 18. Kb1
{[%clk 0:02:44.4]} 18... a4 {[%clk 0:02:26.1]} 19. a3 {[%clk 0:02:43.8]} 19...
g5 {[%clk 0:02:08.8]} 20. c4 {[%clk 0:02:29.5]} 20... b5 {[%clk 0:02:02.6]} 21.
cxb5 {[%clk 0:02:27.3]} 21... Bxb5 {[%clk 0:02:03.5]} 22. Rc3 {[%clk 0:02:27.5]}
22... Ba7 {[%clk 0:01:50.2]} 23. Nc7 {[%clk 0:02:17.6]} 23... Bf1 {[%clk
0:01:38.8]} 24. Rd7+ {[%clk 0:02:16.9]} 24... Kg6 {[%clk 0:01:38.8]} 25. g4
{[%clk 0:02:07.9]} 25... Bxf2 {[%clk 0:01:30.7]} 26. Nxe5+ {[%clk 0:02:07.3]}
1-0

[Event "Early-Titled-Tuesday-Blitz-October-24-2023"]
[Site "Chess.com"]
[Date "2023.10.24"]
[Round "1"]
[White "marik_spb"]
[Black "scarabee43"]
[Result "0-1"]
[WhiteElo "2437"]
[BlackElo "2800"]
[TimeControl "180+1"]
[EndTime "8:04:13 PDT"]
[Termination "scarabee43 won on time"]

1. d3 {[%clk 0:02:54.7]} 1... d5 {[%clk 0:02:58.8]} 2. e4 {[%clk 0:02:53.9]}
2... e6 {[%clk 0:02:49.9]} 3. Nf3 {[%clk 0:02:51.7]} 3... c5 {[%clk 0:02:49.6]}
4. Be2 {[%clk 0:02:44.7]} 4... Nc6 {[%clk 0:02:49.1]} 5. O-O {[%clk 0:02:43.1]}
5... Nf6 {[%clk 0:02:48.7]} 6. Nbd2 {[%clk 0:02:28.6]} 6... Be7 {[%clk
0:02:45.8]} 7. c4 {[%clk 0:02:22.5]} 7... dxe4 {[%clk 0:02:40.7]} 8. Nxe4 {[%clk
0:02:18.4]} 8... O-O {[%clk 0:02:33.6]} 9. Be3 {[%clk 0:02:07.5]} 9... b6 {[%clk
0:02:32.6]} 10. a3 {[%clk 0:02:01.1]} 10... Bb7 {[%clk 0:02:29.5]} 11. Qc2
{[%clk 0:01:59.5]} 11... Rc8 {[%clk 0:02:23.6]} 0-1

[Event "Early-Titled-Tuesday-Blitz-October-24-2023"]
[Site "Chess.com"]
[Date "2023.10.24"]
[Round "1"]
[White "Lennis93"]
[Black "szachmistrz2500"]
[Result "1-0"]
[WhiteElo "2755"]
[BlackElo "2406"]
[TimeControl "180+1"]
[EndTime "8:04:13 PDT"]
[Termination "Lennis93 won by resignation"]

1. Nf3 {[%clk 0:02:59.4]} 1... c5 {[%clk 0:02:57.7]} 2. g3 {[%clk 0:02:56.4]}
2... g6 {[%clk 0:02:57.3]} 3. Bg2 {[%clk 0:02:57.3]} 3... Bg7 {[%clk 0:02:57]}
4. O-O {[%clk 0:02:57.7]} 4... Nc6 {[%clk 0:02:56.3]} 5. e4 {[%clk 0:02:57.9]}
5... e5 {[%clk 0:02:50]} 6. c3 {[%clk 0:02:55.7]} 6... Nge7 {[%clk 0:02:49.2]}
7. d4 {[%clk 0:02:55.6]} 7... exd4 {[%clk 0:02:45.2]} 8. cxd4 {[%clk 0:02:55.6]}
8... cxd4 {[%clk 0:02:37.6]} 9. Bf4 {[%clk 0:02:52.1]} 9... d5 {[%clk
0:02:33.4]} 10. e5 {[%clk 0:02:42.7]} 10... O-O {[%clk 0:02:32]} 11. Na3 {[%clk
0:02:42]} 11... Qb6 {[%clk 0:02:30.1]} 12. Qb3 {[%clk 0:02:31.8]} 12... Qxb3
{[%clk 0:02:22.3]} 13. axb3 {[%clk 0:02:32.7]} 13... a6 {[%clk 0:02:20.7]} 14.
Nb5 {[%clk 0:02:21.4]} 14... Bg4 {[%clk 0:02:18.7]} 15. Nbxd4 {[%clk 0:02:20.1]}
15... Rfe8 {[%clk 0:02:10.5]} 16. Rfe1 {[%clk 0:02:16.4]} 16... Rad8 {[%clk
0:02:09.6]} 17. Bg5 {[%clk 0:01:52.9]} 17... h6 {[%clk 0:02:06.6]} 18. Nxc6
{[%clk 0:01:51.8]} 18... bxc6 {[%clk 0:01:59.4]} 19. Bxe7 {[%clk 0:01:49.7]}
19... Rxe7 {[%clk 0:01:59.3]} 20. Rxa6 {[%clk 0:01:50.4]} 20... Bxf3 {[%clk
0:01:59.2]} 21. Bxf3 {[%clk 0:01:49.9]} 21... Rb8 {[%clk 0:01:51.7]} 22. Rxc6
{[%clk 0:01:44]} 22... Rxe5 {[%clk 0:01:48.1]} 23. Rxe5 {[%clk 0:01:42.7]} 23...
Bxe5 {[%clk 0:01:47.7]} 24. Bxd5 {[%clk 0:01:43.4]} 24... Bxb2 {[%clk
0:01:40.2]} 25. Rxg6+ {[%clk 0:01:42.8]} 25... Kf8 {[%clk 0:01:38.8]} 26. Rxh6
{[%clk 0:01:42.2]} 26... Bg7 {[%clk 0:01:37.2]} 27. Rh5 {[%clk 0:01:41.7]} 27...
Rb5 {[%clk 0:01:28.8]} 28. Bxf7 {[%clk 0:01:40]} 1-0

[Event "Early-Titled-Tuesday-Blitz-October-24-2023"]
[Site "Chess.com"]
[Date "2023.10.24"]
[Round "1"]
[White "kreonx"]
[Black "artin10862"]
[Result "0-1"]
[WhiteElo "2486"]
[BlackElo "2881"]
[TimeControl "180+1"]
[EndTime "8:04:20 PDT"]
[Termination "artin10862 won by resignation"]

1. e4 {[%clk 0:03:00.9]} 1... e5 {[%clk 0:02:59.1]} 2. Nf3 {[%clk 0:03:00.5]}
2... Nc6 {[%clk 0:02:58.5]} 3. d4 {[%clk 0:03:01.1]} 3... exd4 {[%clk 0:02:57]}
4. Nxd4 {[%clk 0:03:02]} 4... Nf6 {[%clk 0:02:57.5]} 5. Nxc6 {[%clk 0:03:02]}
5... bxc6 {[%clk 0:02:58.4]} 6. e5 {[%clk 0:03:02.4]} 6... Qe7 {[%clk
0:02:56.8]} 7. Qe2 {[%clk 0:03:03]} 7... Nd5 {[%clk 0:02:57]} 8. c4 {[%clk
0:03:03.7]} 8... Ba6 {[%clk 0:02:53.8]} 9. b3 {[%clk 0:03:01.3]} 9... d6 {[%clk
0:02:45]} 10. exd6 {[%clk 0:02:58.3]} 10... cxd6 {[%clk 0:02:45.2]} 11. Qxe7+
{[%clk 0:02:53.5]} 11... Nxe7 {[%clk 0:02:46.1]} 12. Bb2 {[%clk 0:02:51.8]}
12... c5 {[%clk 0:02:43.8]} 13. Bd3 {[%clk 0:02:44]} 13... Nc6 {[%clk
0:02:41.9]} 14. Be4 {[%clk 0:02:39.9]} 14... Bb7 {[%clk 0:02:39.8]} 15. Nc3
{[%clk 0:02:38.3]} 15... O-O-O {[%clk 0:02:39.6]} 16. O-O-O {[%clk 0:02:34.4]}
16... Be7 {[%clk 0:02:37.9]} 17. Nd5 {[%clk 0:02:31.6]} 17... f6 {[%clk
0:02:36.5]} 18. Nxe7+ {[%clk 0:02:23.3]} 18... Nxe7 {[%clk 0:02:36.4]} 19. Bxb7+
{[%clk 0:02:24.2]} 19... Kxb7 {[%clk 0:02:36.7]} 20. Rhe1 {[%clk 0:02:24.6]}
20... Nc6 {[%clk 0:02:27]} 21. Re2 {[%clk 0:02:19.9]} 21... Kc7 {[%clk
0:02:25.7]} 22. Rde1 {[%clk 0:02:19.6]} 22... Kd7 {[%clk 0:02:25.2]} 23. Bc3
{[%clk 0:02:14.5]} 23... h5 {[%clk 0:02:24.5]} 24. h4 {[%clk 0:02:08.7]} 24...
Rh6 {[%clk 0:02:23.9]} 25. g3 {[%clk 0:02:02.6]} 25... Rg6 {[%clk 0:02:23.6]}
26. Kd2 {[%clk 0:01:59.4]} 26... Ne5 {[%clk 0:02:22.6]} 27. Bxe5 {[%clk
0:01:56.2]} 27... dxe5 {[%clk 0:02:17.5]} 28. Ke3 {[%clk 0:01:52.6]} 28... Rg4
{[%clk 0:02:16.3]} 29. Rd2+ {[%clk 0:01:48.9]} 29... Rd4 {[%clk 0:02:15.6]} 30.
Rxd4+ {[%clk 0:01:49]} 30... cxd4+ {[%clk 0:02:14]} 31. Kd3 {[%clk 0:01:46.6]}
31... Ke6 {[%clk 0:02:13.1]} 32. f4 {[%clk 0:01:46.8]} 32... Kf5 {[%clk
0:02:11.9]} 33. fxe5 {[%clk 0:01:44.8]} 33... fxe5 {[%clk 0:02:11.9]} 34. Rf1+
{[%clk 0:01:45.1]} 34... Kg4 {[%clk 0:02:11.8]} 35. Ke4 {[%clk 0:01:45.7]} 35...
Kxg3 {[%clk 0:02:10.9]} 36. Rg1+ {[%clk 0:01:42.7]} 36... Kxh4 {[%clk
0:02:10.4]} 37. Rxg7 {[%clk 0:01:42]} 37... d3 {[%clk 0:02:10.1]} 38. Rg1 {[%clk
0:01:37.6]} 38... d2 {[%clk 0:02:09.5]} 39. Rd1 {[%clk 0:01:37]} 39... Kg3
{[%clk 0:02:08.9]} 40. c5 {[%clk 0:01:30.3]} 40... Kf2 {[%clk 0:02:08.2]} 41. c6
{[%clk 0:01:30.2]} 41... Ke2 {[%clk 0:02:08.1]} 42. c7 {[%clk 0:01:29]} 42...
Rc8 {[%clk 0:02:07.5]} 43. Rxd2+ {[%clk 0:01:26.1]} 43... Kxd2 {[%clk
0:02:07.2]} 0-1

[Event "Early-Titled-Tuesday-Blitz-October-24-2023"]
[Site "Chess.com"]
[Date "2023.10.24"]
[Round "1"]
[White "DanielTitichoca"]
[Black "johnmez"]
[Result "1-0"]
[WhiteElo "2615"]
[BlackElo "2287"]
[TimeControl "180+1"]
[EndTime "8:04:29 PDT"]
[Termination "DanielTitichoca won by resignation"]

1. e4 {[%clk 0:02:57.4]} 1... e6 {[%clk 0:03:00.1]} 2. d3 {[%clk 0:02:56.3]}
2... d5 {[%clk 0:03:00.2]} 3. Nd2 {[%clk 0:02:57.2]} 3... Nc6 {[%clk 0:02:52.1]}
4. Ngf3 {[%clk 0:02:57.7]} 4... Nf6 {[%clk 0:02:39.3]} 5. c3 {[%clk 0:02:56.7]}
5... dxe4 {[%clk 0:02:30.1]} 6. dxe4 {[%clk 0:02:55.7]} 6... e5 {[%clk
0:02:29.8]} 7. Bc4 {[%clk 0:02:49.6]} 7... Bc5 {[%clk 0:02:27.7]} 8. Qe2 {[%clk
0:02:48.8]} 8... a5 {[%clk 0:02:26.2]} 9. h3 {[%clk 0:02:48.6]} 9... O-O {[%clk
0:02:25]} 10. Nf1 {[%clk 0:02:49]} 10... Qe7 {[%clk 0:02:03.6]} 11. g4 {[%clk
0:02:47.7]} 11... Be6 {[%clk 0:02:00.6]} 12. Ng3 {[%clk 0:02:45.6]} 12... Bxc4
{[%clk 0:01:55]} 13. Qxc4 {[%clk 0:02:46.5]} 13... Nd7 {[%clk 0:01:37.7]} 14.
Nf5 {[%clk 0:02:39.7]} 14... Qe6 {[%clk 0:01:35.6]} 15. Qe2 {[%clk 0:02:37.7]}
15... Nb6 {[%clk 0:01:21.3]} 16. Be3 {[%clk 0:02:29.3]} 16... Bxe3 {[%clk
0:01:15.9]} 17. Nxe3 {[%clk 0:02:30.1]} 17... a4 {[%clk 0:01:13.8]} 18. O-O
{[%clk 0:02:28.8]} 18... Na5 {[%clk 0:01:05.2]} 19. Rfd1 {[%clk 0:02:14.4]}
19... Rfd8 {[%clk 0:00:59.7]} 20. Qb5 {[%clk 0:02:14.5]} 20... Nac4 {[%clk
0:00:52.8]} 21. Nxc4 {[%clk 0:02:09.9]} 21... Nxc4 {[%clk 0:00:39.6]} 22. Qxb7
{[%clk 0:02:09.7]} 22... Rdb8 {[%clk 0:00:36.9]} 23. Qxc7 {[%clk 0:02:06.9]}
23... Rxb2 {[%clk 0:00:34.4]} 24. Rd8+ {[%clk 0:02:05.8]} 1-0

[Event "Early-Titled-Tuesday-Blitz-October-24-2023"]
[Site "Chess.com"]
[Date "2023.10.24"]
[Round "1"]
[White "stasOR4ik"]
[Black "Rodalquilar"]
[Result "0-1"]
[WhiteElo "2418"]
[BlackElo "2769"]
[TimeControl "180+1"]
[EndTime "8:04:36 PDT"]
[Termination "Rodalquilar won by resignation"]

1. e4 {[%clk 0:03:00.9]} 1... d5 {[%clk 0:02:57.7]} 2. exd5 {[%clk 0:03:00.6]}
2... Qxd5 {[%clk 0:02:58.6]} 3. Nf3 {[%clk 0:03:01.2]} 3... Bg4 {[%clk
0:02:58.1]} 4. Be2 {[%clk 0:03:01.7]} 4... Nc6 {[%clk 0:02:58.3]} 5. d4 {[%clk
0:03:00.9]} 5... O-O-O {[%clk 0:02:57.8]} 6. c3 {[%clk 0:02:58.9]} 6... e5
{[%clk 0:02:54.4]} 7. dxe5 {[%clk 0:02:53.8]} 7... Qxd1+ {[%clk 0:02:48.9]} 8.
Bxd1 {[%clk 0:02:54.7]} 8... Nxe5 {[%clk 0:02:49]} 9. Nbd2 {[%clk 0:02:30.5]}
9... Nd3+ {[%clk 0:02:46.9]} 10. Kf1 {[%clk 0:02:30.4]} 10... Nf6 {[%clk
0:02:27.1]} 11. h3 {[%clk 0:02:27.8]} 11... Bc5 {[%clk 0:02:14.5]} 12. hxg4
{[%clk 0:02:14.3]} 12... Nxf2 {[%clk 0:02:13.3]} 13. g5 {[%clk 0:01:33.3]} 13...
Nxh1 {[%clk 0:01:42.4]} 14. gxf6 {[%clk 0:01:19.5]} 14... Ng3+ {[%clk
0:01:42.5]} 15. Ke1 {[%clk 0:01:14]} 15... Rhe8+ {[%clk 0:01:42.6]} 16. Be2
{[%clk 0:01:14.1]} 16... Rxe2+ {[%clk 0:01:39.2]} 17. Kd1 {[%clk 0:01:13.3]}
17... gxf6 {[%clk 0:01:39.5]} 18. a4 {[%clk 0:01:00.3]} 18... Rxg2 {[%clk
0:01:37.4]} 19. b4 {[%clk 0:01:00.3]} 19... Be3 {[%clk 0:01:36]} 20. a5 {[%clk
0:00:58.7]} 20... Ne4 {[%clk 0:01:24.6]} 21. Ra2 {[%clk 0:00:56.9]} 21... Nxc3+
{[%clk 0:01:24.5]} 0-1

[Event "Early-Titled-Tuesday-Blitz-October-24-2023"]
[Site "Chess.com"]
[Date "2023.10.24"]
[Round "1"]
[White "Korchmar_Vasiliy"]
[Black "Casper"]
[Result "0-1"]
[WhiteElo "2759"]
[BlackElo "2437"]
[TimeControl "180+1"]
[EndTime "8:04:46 PDT"]
[Termination "Casper won by resignation"]

1. e4 {[%clk 0:03:00.9]} 1... c5 {[%clk 0:03:00.4]} 2. d4 {[%clk 0:02:52.9]}
2... cxd4 {[%clk 0:03:00.3]} 3. Qxd4 {[%clk 0:02:53.8]} 3... Nc6 {[%clk
0:03:00.3]} 4. Qd3 {[%clk 0:02:52.8]} 4... g6 {[%clk 0:03:00.8]} 5. Nc3 {[%clk
0:02:52.3]} 5... Bg7 {[%clk 0:03:01.4]} 6. Nf3 {[%clk 0:02:52.3]} 6... d6 {[%clk
0:03:01.5]} 7. Be2 {[%clk 0:02:52.8]} 7... Nf6 {[%clk 0:03:01.7]} 8. O-O {[%clk
0:02:53.3]} 8... O-O {[%clk 0:03:02.3]} 9. Nd5 {[%clk 0:02:54]} 9... Bg4 {[%clk
0:03:01.8]} 10. c3 {[%clk 0:02:53.8]} 10... Bxf3 {[%clk 0:03:00.5]} 11. Qxf3
{[%clk 0:02:54.7]} 11... e6 {[%clk 0:02:57.7]} 12. Nxf6+ {[%clk 0:02:49.9]}
12... Qxf6 {[%clk 0:02:57.5]} 13. Qg3 {[%clk 0:02:46.1]} 13... d5 {[%clk
0:02:33.4]} 14. exd5 {[%clk 0:02:36.9]} 14... exd5 {[%clk 0:02:32.8]} 15. Bf4
{[%clk 0:01:44.5]} 15... d4 {[%clk 0:02:31.3]} 16. c4 {[%clk 0:01:40.2]} 16...
Rfe8 {[%clk 0:02:14.3]} 17. Bf3 {[%clk 0:01:35.3]} 17... d3 {[%clk 0:01:55.7]}
18. Rab1 {[%clk 0:01:33.7]} 18... Nd4 {[%clk 0:01:55.4]} 19. Rfd1 {[%clk
0:01:11.2]} 19... Ne2+ {[%clk 0:01:53.7]} 20. Bxe2 {[%clk 0:01:10.3]} 20... dxe2
{[%clk 0:01:54.6]} 21. Re1 {[%clk 0:01:08.5]} 21... Rad8 {[%clk 0:01:52.3]} 22.
Be3 {[%clk 0:01:06]} 22... Qf5 {[%clk 0:01:44.9]} 23. Bxa7 {[%clk 0:00:38.2]}
23... Qxb1 {[%clk 0:01:42.2]} 0-1